fUST/lending_fUST_20260128
["ID","MTS","AMOUNT","RATE_DAILY","PERIOD"]
[403778498,1769535358764,5000.0,0.00011502,2]
[403778499,1769535359197,-124.3627066,0.0003,60]
[403778500,1769535359316,-150.0,0.0003,60]
[403778501,1769535382283,5000.0,0.00011502,2]
[403778502,1769535404756,0.01,0.00011502,2]
[403778503,1769535404784,4999.99,0.00011502,2]
[403778504,1769535456657,150.0,0.0003,60]
[403778505,1769535457627,150.0,0.0003,60]
[403778506,1769535457741,150.0,0.0003,60]
[403778507,1769535457877,150.0,0.0003,60]
[403778508,1769535458073,150.0,0.0003,60]
[403778509,1769535458737,150.0,0.0003,60]
[403778510,1769535458886,150.0,0.0003,60]
[403778511,1769535458992,500.0,0.0003,60]
[403778512,1769535586502,761.42,0.00010974,2]
[403778513,1769535625821,4238.6,0.00011502,2]
[403778514,1769535625850,761.4,0.00011502,2]
[403778515,1769535648628,5000.0,0.00011502,2]
[403778516,1769535668890,751.73,0.00011316,2]
[403778517,1769535672150,3486.88,0.00011502,2]
[403778518,1769535672176,1513.12,0.00011502,2]
[403778519,1769535694727,5000.0,0.00011502,2]
[403778520,1769535718571,3486.89,0.00011502,2]
[403778521,1769535718593,1513.11,0.00011502,2]
[403778522,1769535742072,5000.0,0.00011502,2]
[403778523,1769535748170,203.19270119,0.00030137,120]
[403778524,1769535748191,296.80729881,0.00030137,120]
[403778525,1769535749946,2318.5487514,0.00011502,2]
[403778526,1769535759124,742.16,0.00011422,2]
[403778527,1769535766279,5000.0,0.00011502,2]
[403778528,1769535774604,2681.4612486,0.00011502,2]
[403778529,1769535790006,5000.0,0.00011502,2]
[403778530,1769535812700,2408.07955354,0.00011502,2]
[403778531,1769535825605,175.6372934,0.0003,60]
[403778532,1769535932533,44453.2442927,0.00010973,2]
[403778533,1769536000833,732.72,0.00011322,2]
[403778534,1769536030082,-404.65,0.000117,2]
[403778535,1769536030104,-585.0,0.000117,2]
[403778536,1769536030125,-249.23808335,0.00011712,2]
[403778537,1769536089512,723.39,0.00011283,2]
[403778538,1769536100468,2591.92044646,0.00011502,2]
[403778539,1769536122983,1331.70581354,0.00011502,2]
[403778584,1769536231566,-714.18,0.00011697,2]
[403778585,1769536231575,-585.0,0.00011697,2]
[403778586,1769536231585,-383.35724982,0.00011718,2]
[403778587,1769536231594,-207.89267664,0.00011724,2]
[403778588,1769536231603,-300.0,0.00012054,2]
[403778589,1769536231613,-669.33364102,0.00012054,2]
[403778590,1769536231624,-530.66635898,0.00012054,2]
[403778591,1769536231633,-1388.77388052,0.00012055,2]
[403778592,1769536231646,-48611.22611948,0.00012055,2]
[403778593,1769536231656,-500.0,0.00012055,2]
[403778594,1769536231665,-500.0,0.00012055,2]
[403778595,1769536231675,-500.0,0.00012055,2]
[403778596,1769536231685,-188.74878326,0.00012055,2]
[403778597,1769536231694,-500.0,0.00012055,2]
[403778598,1769536231704,-500.0,0.00012055,2]
[403778599,1769536231713,-500.0,0.00012055,2]
[403778600,1769536231723,-500.0,0.00012055,2]
[403778601,1769536231732,-500.0,0.00012055,2]
[403778602,1769536231743,-500.0,0.00012055,2]
[403778603,1769536231752,-500.0,0.00012055,2]
[403778604,1769536231762,-500.0,0.00012055,2]
[403778605,1769536231772,-500.0,0.00012055,2]
[403778606,1769536231781,-401.99266991,0.00012055,2]
[403778607,1769536231791,-500.0,0.00012055,2]
[403778608,1769536231801,-500.0,0.00012055,2]
[403778609,1769536231810,-500.0,0.00012055,2]
[403778610,1769536231819,-500.0,0.00012055,2]
[403778611,1769536231828,-500.0,0.00012055,2]
[403778612,1769536231837,-500.0,0.00012055,2]
[403778613,1769536231846,-500.0,0.00012055,2]
[403778614,1769536231855,-500.0,0.00012055,2]
[403778615,1769536231864,-500.0,0.00012055,2]
[403778616,1769536231873,-500.0,0.00012055,2]
[403778617,1769536231883,-300.98090398,0.00012055,2]
[403778619,1769536231891,-500.0,0.00012055,2]
[403778620,1769536231905,-309.62151467,0.00012055,2]
[403778621,1769536231914,-500.0,0.00012055,2]
[403778622,1769536231923,-500.0,0.00012055,2]
[403778623,1769536231931,-500.0,0.00012055,2]
[403778625,1769536231940,-500.0,0.00012055,2]
[403778626,1769536231949,-500.0,0.00012055,2]
[403778628,1769536231958,-500.0,0.00012055,2]
[403778630,1769536231967,-500.0,0.00012055,2]
[403778639,1769536231976,-500.0,0.00012055,2]
[403778640,1769536232167,-500.0,0.00012055,2]
[403778641,1769536232177,-500.0,0.00012055,2]
[403778642,1769536232186,-500.0,0.00012055,2]
[403778643,1769536232195,-500.0,0.00012055,2]
[403778644,1769536232204,-500.0,0.00012055,2]
[403778645,1769536232213,-500.0,0.00012055,2]
[403778646,1769536232222,-500.0,0.00012055,2]
[403778647,1769536232231,-500.0,0.00012055,2]
[403778648,1769536232240,-500.0,0.00012055,2]
[403778649,1769536232251,-500.0,0.00012055,2]
[403778650,1769536232260,-500.0,0.00012055,2]
[403778651,1769536232272,-500.0,0.00012055,2]
[403778652,1769536232282,-500.0,0.00012055,2]
[403778653,1769536232292,-500.0,0.00012055,2]
[403778654,1769536232302,-500.0,0.00012055,2]
[403778655,1769536232312,-500.0,0.00012055,2]
[403778656,1769536232321,-500.0,0.00012055,2]
[403778657,1769536232331,-500.0,0.00012055,2]
[403778658,1769536232340,-500.0,0.00012055,2]
[403778659,1769536232350,-500.0,0.00012055,2]
[403778660,1769536232360,-500.0,0.00012055,2]
[403778661,1769536232371,-500.0,0.00012055,2]
[403778662,1769536232381,-277.21289668,0.00012055,2]
[403778663,1769536232390,-500.0,0.00012055,2]
[403778664,1769536232403,-500.0,0.00012055,2]
[403778665,1769536232413,-618.89271037,0.00012055,2]
[403778666,1769536232422,-530.44232399,0.00012055,2]
[403778667,1769536232432,-166.789,0.00012058,2]
[403778668,1769536232441,-300.0,0.00012059,2]
[403778669,1769536232451,-300.0,0.00012059,2]
[403778670,1769536232460,-300.0,0.00012059,2]
[403778671,1769536232471,-300.0,0.00012059,2]
[403778672,1769536232480,-300.0,0.00012059,2]
[403778673,1769536232490,-300.0,0.00012059,2]
[403778674,1769536232499,-300.0,0.00012059,2]
[403778675,1769536232509,-300.0,0.00012059,2]
[403778676,1769536232518,-300.0,0.00012059,2]
[403778677,1769536232528,-300.0,0.00012059,2]
[403778678,1769536232537,-300.0,0.00012059,2]
[403778679,1769536232547,-300.0,0.00012059,2]
[403778680,1769536232557,-300.0,0.00012059,2]
[403778681,1769536232567,-300.0,0.00012059,2]
[403778682,1769536232576,-300.0,0.00012059,2]
[403778683,1769536232586,-68.59584781,0.00012059,2]
[403778684,1769536232599,-531.40415219,0.00012059,2]
[403778685,1769536232608,-964.51754086,0.0001276,2]
[403778686,1769536232622,-463.85245914,0.0001276,2]
[403778687,1769536232631,-40.22584781,0.000129,2]
[403778688,1769536232644,-7867.10129448,0.000129,2]
[403778689,1769536232654,-420.0,0.00013232,2]
[403778690,1769536232663,-720.0,0.00013265,2]
[403778691,1769536232673,-500.0,0.00013273,2]
[403778692,1769536232682,-500.0,0.00013273,2]
[403778693,1769536232692,-622.96707627,0.00013273,2]
[403778694,1769536232703,-500.0,0.00013273,2]
[403778695,1769536232718,-500.0,0.00013273,2]
[403778696,1769536232736,-500.0,0.00013273,2]
[403778697,1769536232757,-500.0,0.00013273,2]
[403778698,1769536232777,-500.0,0.00013273,2]
[403778699,1769536232796,-500.0,0.00013273,2]
[403778700,1769536232816,-500.0,0.00013273,2]
[403778701,1769536232837,-500.0,0.00013273,2]
[403778702,1769536232853,-500.0,0.00013273,2]
[403778703,1769536232862,-500.0,0.00013273,2]
[403778704,1769536232871,-500.0,0.00013273,2]
[403778705,1769536232881,-518.52236368,0.00013273,2]
[403778706,1769536232890,-500.0,0.00013273,2]
[403778707,1769536232901,-500.0,0.00013273,2]
[403778708,1769536232910,-500.0,0.00013273,2]
[403778709,1769536232919,-500.0,0.00013273,2]
[403778710,1769536232928,-500.0,0.00013273,2]
[403778711,1769536232937,-500.0,0.00013273,2]
[403778712,1769536232946,-500.0,0.00013273,2]
[403778713,1769536232955,-500.0,0.00013273,2]
[403778714,1769536232964,-500.0,0.00013273,2]
[403778715,1769536232973,-500.0,0.00013273,2]
[403778716,1769536232982,-500.0,0.00013273,2]
[403778717,1769536232991,-500.0,0.00013273,2]
[403778718,1769536233000,-502.68815338,0.00013273,2]
[403778719,1769536233009,-500.0,0.00013273,2]
[403778720,1769536233019,-500.0,0.00013273,2]
[403778721,1769536233029,-302.08825533,0.00013273,2]
[403778722,1769536233042,-500.0,0.00013273,2]
[403778723,1769536233052,-500.0,0.00013273,2]
[403778724,1769536233061,-500.0,0.00013273,2]
[403778725,1769536233070,-500.0,0.00013273,2]
[403778726,1769536233080,-500.0,0.00013273,2]
[403778727,1769536233089,-500.0,0.00013273,2]
[403778728,1769536233098,-500.0,0.00013273,2]
[403778729,1769536233108,-238.65486629,0.00013273,2]
[403778730,1769536233118,-218.66942559,0.00013599,2]
[403778731,1769536233128,-300.0,0.00013673,2]
[403778732,1769536233137,-155.0,0.00013697,2]
[403778733,1769536233146,-500.0,0.00013698,2]
[403778734,1769536233156,-500.0,0.00013698,2]
[403778735,1769536233165,-500.0,0.00013698,2]
[403778736,1769536233175,-186.52448351,0.00013698,2]
[403778737,1769536233185,-813.08,0.00013698,2]
[403778738,1769536233195,-813.08,0.00013698,2]
[403778739,1769536233204,-813.08,0.00013698,2]
[403778740,1769536233215,-813.08,0.00013698,2]
[403778741,1769536233225,-813.08,0.00013698,2]
[403778742,1769536233234,-813.08,0.00013698,2]
[403778743,1769536233245,-813.08,0.00013698,2]
[403778744,1769536233255,-813.08,0.00013698,2]
[403778745,1769536233265,-813.08,0.00013698,2]
[403778746,1769536233274,-813.08,0.00013698,2]
[403778747,1769536233283,-813.08,0.00013698,2]
[403778748,1769536233292,-813.08,0.00013698,2]
[403778749,1769536233301,-813.08,0.00013698,2]
[403778750,1769536233311,-813.08,0.00013698,2]
[403778751,1769536233320,-813.08,0.00013698,2]
[403778752,1769536233329,-813.08,0.00013698,2]
[403778753,1769536233338,-813.08,0.00013698,2]
[403778754,1769536233347,-813.08,0.00013698,2]
[403778755,1769536233357,-813.08,0.00013698,2]
[403778756,1769536233366,-813.08,0.00013698,2]
[403778757,1769536233375,-813.08,0.00013698,2]
[403778758,1769536233385,-813.08,0.00013698,2]
[403778759,1769536233395,-813.08,0.00013698,2]
[403778760,1769536233404,-813.08418364,0.00013698,2]
[403778761,1769536233426,-1000.0,0.00013698,2]
[403778762,1769536233436,-1000.0,0.00013698,2]
[403778763,1769536233445,-1000.0,0.00013698,2]
[403778764,1769536233455,-1000.0,0.00013698,2]
[403778765,1769536233465,-1000.0,0.00013698,2]
[403778766,1769536233475,-941.13251238,0.00013698,2]
[403778767,1769536233484,-500.0,0.00013698,2]
[403778768,1769536233493,-500.0,0.00013698,2]
[403778769,1769536233503,-500.0,0.00013698,2]
[403778770,1769536233512,-500.0,0.00013698,2]
[403778771,1769536233521,-500.0,0.00013698,2]
[403778772,1769536233530,-500.0,0.00013698,2]
[403778773,1769536233539,-500.0,0.00013698,2]
[403778774,1769536233548,-500.0,0.00013698,2]
[403778775,1769536233557,-500.0,0.00013698,2]
[403778776,1769536233567,-500.0,0.00013698,2]
[403778777,1769536233576,-500.0,0.00013698,2]
[403778778,1769536233586,-500.0,0.00013698,2]
[403778779,1769536233595,-500.0,0.00013698,2]
[403778780,1769536233604,-500.0,0.00013698,2]
[403778781,1769536233613,-500.0,0.00013698,2]
[403778782,1769536233623,-500.0,0.00013698,2]
[403778783,1769536233632,-500.0,0.00013698,2]
[403778784,1769536233641,-500.0,0.00013698,2]
[403778785,1769536233652,-500.0,0.00013698,2]
[403778786,1769536233661,-500.0,0.00013698,2]
[403778787,1769536233670,-500.0,0.00013698,2]
[403778788,1769536233679,-500.0,0.00013698,2]
[403778789,1769536233689,-500.0,0.00013698,2]
[403778790,1769536233698,-483.90913431,0.00013698,2]
[403778791,1769536233707,-500.0,0.00013698,2]
[403778792,1769536233719,-500.0,0.00013698,2]
[403778793,1769536233728,-500.0,0.00013698,2]
[403778794,1769536233737,-500.0,0.00013698,2]
[403778795,1769536233746,-500.0,0.00013698,2]
[403778796,1769536233755,-500.0,0.00013698,2]
[403778797,1769536233765,-500.0,0.00013698,2]
[403778798,1769536233774,-500.0,0.00013698,2]
[403778799,1769536233783,-500.0,0.00013698,2]
[403778800,1769536233793,-500.0,0.00013698,2]
[403778801,1769536233803,-500.0,0.00013698,2]
[403778802,1769536233811,-500.0,0.00013698,2]
[403778803,1769536233821,-500.0,0.00013698,2]
[403778804,1769536233830,-500.0,0.00013698,2]
[403778805,1769536233839,-500.0,0.00013698,2]
[403778806,1769536233849,-500.0,0.00013698,2]
[403778807,1769536233858,-527.43989334,0.00013698,2]
[403778808,1769536233867,-515.45788341,0.00013698,2]
[403778809,1769536233876,-1000.0,0.00013698,2]
[403778810,1769536233885,-580.78992406,0.00013698,2]
[403778811,1769536233895,-582.521614,0.00013699,2]
[403778812,1769536233905,-500.6948387,0.00013699,2]
[403778813,1769536233915,-220.8942339,0.00013699,2]
[403778814,1769536233924,-507.15850376,0.00013699,2]
[403778815,1769536233933,-500.2256561,0.00013699,2]
[403778816,1769536233943,-500.74038109,0.00013699,2]
[403778817,1769536233953,-160.20285304,0.00013699,2]
[403778818,1769536233963,-500.0,0.00013699,2]
[403778819,1769536233972,-500.0,0.00013699,2]
[403778820,1769536233981,-500.2910062,0.00013699,2]
[403778821,1769536233991,-500.0,0.00013699,2]
[403778822,1769536234001,-500.0,0.00013699,2]
[403778823,1769536234011,-160.26500187,0.00013699,2]
[403778824,1769536234020,-500.0,0.00013699,2]
[403778825,1769536234030,-500.0,0.00013699,2]
[403778826,1769536234040,-500.0,0.00013699,2]
[403778827,1769536234053,-500.0,0.00013699,2]
[403778828,1769536234064,-500.0,0.00013699,2]
[403778829,1769536234073,-500.0,0.00013699,2]
[403778830,1769536234083,-500.0,0.00013699,2]
[403778831,1769536234093,-194.72932748,0.00013699,2]
[403778832,1769536234103,-500.0,0.00013699,2]
[403778833,1769536234113,-500.24926867,0.00013699,2]
[403778834,1769536234123,-165.58700471,0.00013699,2]
[403778835,1769536234132,-500.0,0.00013699,2]
[403778836,1769536234142,-500.0,0.00013699,2]
[403778837,1769536234152,-500.0,0.00013699,2]
[403778838,1769536234162,-526.45505483,0.00013699,2]
[403778839,1769536234171,-501.93006265,0.00013699,2]
[403778840,1769536234180,-502.14185001,0.00013699,2]
[403778841,1769536234190,-500.0,0.00013699,2]
[403778842,1769536234200,-299.9295039,0.00013699,2]
[403778843,1769536234209,-500.56709487,0.00013699,2]
[403778844,1769536234219,-500.0,0.00013699,2]
[403778845,1769536234228,-160.67610577,0.00013699,2]
[403778846,1769536234238,-500.0,0.00013699,2]
[403778847,1769536234248,-500.0,0.00013699,2]
[403778848,1769536234257,-500.0,0.00013699,2]
[403778849,1769536234266,-400.38622524,0.00013699,2]
[403778850,1769536234276,-500.0,0.00013699,2]
[403778851,1769536234285,-500.0,0.00013699,2]
[403778852,1769536234294,-500.0,0.00013699,2]
[403778853,1769536234304,-507.6640978,0.00013699,2]
[403778854,1769536234313,-160.98586548,0.00013699,2]
[403778855,1769536234323,-500.0,0.00013699,2]
[403778856,1769536234333,-500.0,0.00013699,2]
[403778857,1769536234342,-158.1763277,0.00013699,2]
[403778858,1769536234351,-500.0,0.00013699,2]
[403778859,1769536234361,-500.0,0.00013699,2]
[403778860,1769536234370,-500.0,0.00013699,2]
[403778861,1769536234379,-500.0,0.00013699,2]
[403778862,1769536234390,-500.0,0.00013699,2]
[403778863,1769536234401,-500.81049976,0.00013699,2]
[403778864,1769536234411,-500.0,0.00013699,2]
[403778865,1769536234420,-500.0,0.00013699,2]
[403778866,1769536234429,-158.03248936,0.00013699,2]
[403778867,1769536234439,-500.0,0.00013699,2]
[403778868,1769536234448,-567.35253141,0.00013699,2]
[403778869,1769536234459,-500.65001385,0.00013699,2]
[403778870,1769536234468,-612.89276168,0.00013699,2]
[403778871,1769536234478,-500.0,0.00013699,2]
[403778872,1769536234487,-302.32459409,0.00013699,2]
[403778873,1769536234496,-462.16420988,0.00013699,2]
[403778874,1769536234506,-500.0,0.00013699,2]
[403778875,1769536234516,-500.0,0.00013699,2]
[403778876,1769536234526,-500.0,0.00013699,2]
[403778877,1769536234536,-158.38045043,0.00013699,2]
[403778878,1769536234546,-500.0,0.00013699,2]
[403778879,1769536234557,-500.0,0.00013699,2]
[403778880,1769536234567,-500.69178235,0.00013699,2]
[403778881,1769536234577,-500.0,0.00013699,2]
[403778882,1769536234587,-160.25817065,0.00013699,2]
[403778883,1769536234597,-158.80345848,0.00013699,2]
[403778884,1769536234607,-500.0,0.00013699,2]
[403778885,1769536234616,-500.0,0.00013699,2]
[403778886,1769536234625,-301.32592677,0.00013699,2]
[403778887,1769536234635,-536.5376944,0.00013699,2]
[403778888,1769536234645,-152.58064698,0.00013699,2]
[403778889,1769536234654,-500.36944659,0.00013699,2]
[403778890,1769536234663,-500.0,0.00013699,2]
[403778891,1769536234672,-526.86363123,0.00013699,2]
[403778892,1769536234682,-500.74660917,0.00013699,2]
[403778893,1769536234693,-173.92029318,0.00013699,2]
[403778894,1769536234702,-500.0,0.00013699,2]
[403778895,1769536234713,-164.19123008,0.00013699,2]
[403778896,1769536234722,-525.37478737,0.00013699,2]
[403778897,1769536234732,-500.51551222,0.00013699,2]
[403778898,1769536234741,-500.0,0.00013699,2]
[403778899,1769536234750,-500.0,0.00013699,2]
[403778900,1769536234761,-500.0,0.00013699,2]
[403778901,1769536234770,-308.60459309,0.00013699,2]
[403778902,1769536234779,-158.90561139,0.00013699,2]
[403778903,1769536234788,-638.73037181,0.00013699,2]
[403778904,1769536234797,-500.33960277,0.00013699,2]
[403778905,1769536234807,-500.0,0.00013699,2]
[403778906,1769536234816,-500.0,0.00013699,2]
[403778907,1769536234825,-500.0,0.00013699,2]
[403778908,1769536234835,-500.3335731,0.00013699,2]
[403778909,1769536234844,-500.0,0.00013699,2]
[403778910,1769536234853,-500.0,0.00013699,2]
[403778911,1769536234862,-500.0,0.00013699,2]
[403778912,1769536234871,-500.71917519,0.00013699,2]
[403778913,1769536234881,-500.18246026,0.00013699,2]
[403778914,1769536234890,-500.0,0.00013699,2]
[403778915,1769536234900,-500.0,0.00013699,2]
[403778916,1769536234910,-500.0,0.00013699,2]
[403778917,1769536234919,-500.0,0.00013699,2]
[403778918,1769536234929,-349.02717716,0.00013699,2]
[403778919,1769536234939,-452.36155479,0.00013718,2]
[403778920,1769536234948,-500.0,0.0001382,2]
[403778921,1769536234957,-500.0,0.0001382,2]
[403778922,1769536234966,-619.57314068,0.00013821,2]
[403778923,1769536234975,-462.44559537,0.00013821,2]
[403778924,1769536234984,-1000.0,0.00013821,2]
[403778925,1769536234993,-1000.0,0.00013821,2]
[403778926,1769536235003,-1000.0,0.00013821,2]
[403778927,1769536235012,-1000.0,0.00013821,2]
[403778928,1769536235022,-822.85276011,0.00013821,2]
[403778929,1769536235031,-500.0,0.00013821,2]
[403778930,1769536235044,-500.0,0.00013821,2]
[403778931,1769536235054,-1000.0,0.00013821,2]
[403778932,1769536235064,-1000.0,0.00013821,2]
[403778933,1769536235074,-1000.0,0.00013821,2]
[403778934,1769536235086,-1000.0,0.00013821,2]
[403778935,1769536235095,-1000.0,0.00013821,2]
[403778936,1769536235105,-1000.0,0.00013821,2]
[403778937,1769536235115,-1000.0,0.00013821,2]
[403778938,1769536235125,-1000.0,0.00013821,2]
[403778939,1769536235134,-1000.0,0.00013821,2]
[403778940,1769536235143,-1000.0,0.00013821,2]
[403778941,1769536235152,-500.0,0.00013821,2]
[403778942,1769536235161,-1000.0,0.00013821,2]
[403778943,1769536235170,-1000.0,0.00013821,2]
[403778944,1769536235179,-500.0,0.00013821,2]
[403778945,1769536235189,-500.0,0.00013821,2]
[403778946,1769536235198,-1000.0,0.00013821,2]
[403778947,1769536235207,-1000.0,0.00013821,2]
[403778948,1769536235216,-1000.0,0.00013821,2]
[403778949,1769536235225,-226.04161405,0.00013821,2]
[403778950,1769536235234,-1000.0,0.00013821,2]
[403778951,1769536235244,-1000.0,0.00013821,2]
[403778952,1769536235253,-2142.55,0.00013824,2]
[403778953,1769536235263,-500.0,0.00014005,2]
[403778954,1769536235272,-500.0,0.00014005,2]
[403778955,1769536235281,-218.66942558,0.00014078,2]
[403778956,1769536235291,-406.45,0.00014078,2]
[403778957,1769536235300,-487.0,0.00014178,2]
[403778958,1769536235309,-487.0,0.00014178,2]
[403778959,1769536235318,-487.0,0.00014178,2]
[403778960,1769536235327,-487.0,0.00014178,2]
[403778961,1769536235337,-487.0,0.00014178,2]
[403778962,1769536235346,-487.0,0.00014178,2]
[403778963,1769536235356,-487.0,0.00014178,2]
[403778964,1769536235365,-487.0,0.00014178,2]
[403778965,1769536235375,-487.0,0.00014178,2]
[403778966,1769536235384,-487.0,0.00014178,2]
[403778967,1769536235393,-487.0,0.00014178,2]
[403778968,1769536235402,-487.0,0.00014178,2]
[403778969,1769536235411,-487.0,0.00014178,2]
[403778970,1769536235420,-487.0,0.00014178,2]
[403778971,1769536235429,-487.0,0.00014178,2]
[403778972,1769536235438,-487.0,0.00014178,2]
[403778973,1769536235447,-487.0,0.00014178,2]
[403778974,1769536235457,-487.0,0.00014178,2]
[403778975,1769536235466,-487.0,0.00014178,2]
[403778976,1769536235475,-487.0,0.00014178,2]
[403778977,1769536235485,-487.0,0.00014178,2]
[403778978,1769536235497,-487.0,0.00014178,2]
[403778979,1769536235507,-619.75,0.00014178,2]
[403778980,1769536235518,-600.0,0.00014221,2]
[403778981,1769536235530,-500.0,0.00014246,2]
[403778982,1769536235540,-618.7672116,0.00014246,2]
[403778983,1769536235550,-501.06198753,0.00014247,2]
[403778984,1769536235559,-610.42597811,0.00014247,2]
[403778985,1769536235569,-474.23438198,0.00014247,2]
[403778986,1769536235579,-1000.0,0.00014247,2]
[403778987,1769536235591,-1000.0,0.00014247,2]
[403778988,1769536235601,-1000.0,0.00014247,2]
[403778989,1769536235611,-1117.40899688,0.00014247,2]
[403778990,1769536235621,-1000.0,0.00014247,2]
[403778991,1769536235630,-844.14797869,0.00014247,2]
[403778992,1769536235639,-1000.0,0.00014247,2]
[403778993,1769536235648,-1000.0,0.00014247,2]
[403778994,1769536235658,-1000.0,0.00014247,2]
[403778995,1769536235667,-1000.0,0.00014247,2]
[403778996,1769536235676,-1001.21829847,0.00014247,2]
[403778997,1769536235686,-1000.0,0.00014247,2]
[403778998,1769536235696,-348.473489,0.00014247,2]
[403778999,1769536235706,-1000.0,0.00014247,2]
[403779000,1769536235715,-1000.0,0.00014247,2]
[403779001,1769536235724,-603.02448987,0.00014247,2]
[403779002,1769536235733,-1000.0,0.00014247,2]
[403779003,1769536235743,-498.54806363,0.00014247,2]
[403779004,1769536235752,-1000.89619199,0.00014247,2]
[403779005,1769536235762,-1000.0,0.00014247,2]
[403779006,1769536235771,-1000.0,0.00014247,2]
[403779007,1769536235780,-1000.0,0.00014247,2]
[403779008,1769536235790,-1000.0,0.00014247,2]
[403779009,1769536235799,-1000.0,0.00014247,2]
[403779010,1769536235809,-158.68078088,0.00014247,2]
[403779011,1769536235819,-1000.0,0.00014247,2]
[403779012,1769536235828,-976.7197482,0.00014368,2]
[403779013,1769536235837,-1000.0,0.00014368,2]
[403779014,1769536235846,-500.0,0.00014368,2]
[403779015,1769536235856,-1500.0,0.00014368,2]
[403779016,1769536235866,-500.0,0.00014368,2]
[403779017,1769536235875,-500.0,0.00014368,2]
[403779018,1769536235884,-1500.0,0.00014368,2]
[403779019,1769536235893,-1500.0,0.00014368,2]
[403779020,1769536235901,-1145.13012888,0.00014368,2]
[403779021,1769536235911,-1500.0,0.00014368,2]
[403779022,1769536235920,-1500.0,0.00014368,2]
[403779023,1769536235929,-1500.0,0.00014368,2]
[403779024,1769536235938,-1464.54701019,0.00014368,2]
[403779025,1769536235948,-1500.0,0.00014368,2]
[403779026,1769536235957,-1000.0,0.00014368,2]
[403779027,1769536235966,-1500.0,0.00014368,2]
[403779028,1769536235978,-1500.0,0.00014368,2]
[403779029,1769536235987,-1004.79261489,0.00014368,2]
[403779030,1769536235999,-1500.0,0.00014368,2]
[403779031,1769536236008,-1500.0,0.00014368,2]
[403779032,1769536236018,-1500.0,0.00014368,2]
[403779033,1769536236028,-587.0,0.00014525,2]
[403779034,1769536236038,-864.0,0.00014592,2]
[403779035,1769536236052,-151.0,0.000146,2]
[403779036,1769536236061,-151.0,0.000147,2]
[403779037,1769536236071,-900.0,0.00014768,2]
[403779038,1769536236081,-175.70742984,0.00014795,2]
[403779039,1769536236091,-1500.0,0.00014795,2]
[403779040,1769536236100,-500.0,0.00014795,2]
[403779041,1769536236110,-1000.0,0.00014795,2]
[403779042,1769536236124,-1500.0,0.00014795,2]
[403779043,1769536236135,-1500.0,0.00014795,2]
[403779044,1769536236145,-1500.0,0.00014795,2]
[403779045,1769536236154,-2856.74,0.00014887,2]
[403779046,1769536236163,-151.0,0.000149,2]
[403779047,1769536236172,-500.0,0.00014916,2]
[403779048,1769536236181,-500.0,0.00014916,2]
[403779049,1769536236190,-212.6308883,0.00014916,2]
[403779050,1769536236200,-500.0,0.00014916,2]
[403779051,1769536236210,-2000.0,0.00014916,2]
[403779052,1769536236219,-2000.0,0.00014916,2]
[403779053,1769536236229,-2000.0,0.00014916,2]